fUSD/lending_fUSD_20260529
["ID","MTS","AMOUNT","RATE_DAILY","PERIOD"]
[423349452,1780066233000,-11962.58270787,0.00010999,2]
[423349453,1780066233000,-4000.0,0.0001103,2]
[423349456,1780066233000,-433.0,0.00011113,2]
[423349457,1780066233000,-150.0,0.00011233,2]
[423349458,1780066233000,-2000.0,0.00011397,2]
[423349454,1780066233000,-216.93,0.00011086,2]
[423349455,1780066233000,-42165.45813434,0.00011099,2]
[423349461,1780066233000,-250.0,0.0001177,2]
[423349471,1780066233000,-1152.0,0.0001304,2]
[423349463,1780066233000,-3292.0,0.00011855,2]
[423349448,1780066233000,-587.0,0.00010777,2]
[423349465,1780066233000,-216.93,0.0001201,2]
[423349464,1780066233000,-823.0,0.00011855,2]
[423349483,1780066233000,-500.0,0.00013698,2]
[423349474,1780066233000,-290.3445,0.00013599,2]
[423349472,1780066233000,-4609.0,0.0001304,2]
[423349470,1780066233000,-1600.0,0.00012843,2]
[423349473,1780066233000,-1061.64,0.00013281,2]
[423349469,1780066233000,-216.93,0.00012472,2]
[423349462,1780066233000,-1600.0,0.00011772,2]
[423349467,1780066233000,-736.0,0.00012224,2]
[423349468,1780066233000,-2000.0,0.00012433,2]
[423349460,1780066233000,-42165.45813434,0.00011749,2]
[423349466,1780066233000,-4827.91,0.00012223,2]
[423349555,1780066234000,-166.66,0.00013836,2]
[423349547,1780066234000,-500.0,0.00013698,2]
[423349550,1780066234000,-500.0,0.00013698,2]
[423349545,1780066234000,-500.0,0.00013698,2]
[423349538,1780066234000,-500.0,0.00013698,2]
[423349541,1780066234000,-608.72,0.00013698,2]
[423349539,1780066234000,-500.0,0.00013698,2]
[423349543,1780066234000,-509.61126299,0.00013698,2]
[423349548,1780066234000,-500.0,0.00013698,2]
[423349540,1780066234000,-301.24,0.00013698,2]
[423349542,1780066234000,-608.72,0.00013698,2]
[423349556,1780066234000,-187.44,0.00013899,2]
[423349552,1780066234000,-166.66,0.00013699,2]
[423349546,1780066234000,-500.0,0.00013698,2]
[423349554,1780066234000,-200.0,0.00013699,2]
[423349551,1780066234000,-288.28618426,0.00013698,2]
[423349553,1780066234000,-2500.0,0.00013699,2]
[423349558,1780066234000,-11733.69196958,0.0001399,2]
[423349568,1780066234000,-500.0,0.00014505,2]
[423349557,1780066234000,-166.66,0.00013973,2]
[423349559,1780066234000,-166.66,0.0001411,2]
[423349561,1780066234000,-166.66,0.00014247,2]
[423349562,1780066234000,-341.0,0.00014344,2]
[423349566,1780066234000,-9794.42,0.00014504,2]
[423349537,1780066234000,-500.0,0.00013698,2]
[423349549,1780066234000,-500.0,0.00013698,2]
[423349535,1780066234000,-500.0,0.00013698,2]
[423349528,1780066234000,-500.0,0.00013698,2]
[423349544,1780066234000,-500.0,0.00013698,2]
[423349507,1780066234000,-500.0,0.00013698,2]
[423349508,1780066234000,-225.35482439,0.00013698,2]
[423349510,1780066234000,-500.0,0.00013698,2]
[423349520,1780066234000,-500.0,0.00013698,2]
[423349509,1780066234000,-500.0,0.00013698,2]
[423349514,1780066234000,-500.0,0.00013698,2]
[423349511,1780066234000,-500.0,0.00013698,2]
[423349512,1780066234000,-500.0,0.00013698,2]
[423349518,1780066234000,-500.0,0.00013698,2]
[423349519,1780066234000,-500.0,0.00013698,2]
[423349516,1780066234000,-500.0,0.00013698,2]
[423349515,1780066234000,-500.0,0.00013698,2]
[423349513,1780066234000,-500.0,0.00013698,2]
[423349533,1780066234000,-500.0,0.00013698,2]
[423349517,1780066234000,-500.0,0.00013698,2]
[423349527,1780066234000,-500.0,0.00013698,2]
[423349560,1780066234000,-11962.58270781,0.00014128,2]
[423349522,1780066234000,-500.0,0.00013698,2]
[423349524,1780066234000,-500.0,0.00013698,2]
[423349526,1780066234000,-500.0,0.00013698,2]
[423349523,1780066234000,-500.0,0.00013698,2]
[423349531,1780066234000,-500.0,0.00013698,2]
[423349529,1780066234000,-500.0,0.00013698,2]
[423349525,1780066234000,-500.0,0.00013698,2]
[423349532,1780066234000,-500.0,0.00013698,2]
[423349530,1780066234000,-500.0,0.00013698,2]
[423349534,1780066234000,-500.0,0.00013698,2]
[423349536,1780066234000,-500.0,0.00013698,2]
[423349521,1780066234000,-500.0,0.00013698,2]
[423349563,1780066234000,-5308.0,0.00014344,2]
[423349571,1780066234000,-190.72078798,0.00015,10]
[423349564,1780066234000,-166.66,0.00014384,2]
[423349601,1780066234000,-151.0,0.00019054,2]
[423349602,1780066234000,-151.0,0.00019054,2]
[423349598,1780066234000,-151.0,0.00019054,2]
[423349600,1780066234000,-151.0,0.00019054,2]
[423349605,1780066234000,-151.0,0.00019054,2]
[423349607,1780066234000,-151.0,0.00019054,2]
[423349608,1780066234000,-151.0,0.00019054,2]
[423349609,1780066234000,-151.0,0.00019054,2]
[423349565,1780066234000,-42165.45813434,0.00014393,2]
[423349615,1780066234000,-151.0,0.00019054,2]
[423349617,1780066234000,-151.0,0.00019054,2]
[423349616,1780066234000,-151.0,0.00019054,2]
[423349604,1780066234000,-151.0,0.00019054,2]
[423349612,1780066234000,-151.0,0.00019054,2]
[423349606,1780066234000,-151.0,0.00019054,2]
[423349611,1780066234000,-151.0,0.00019054,2]
[423349613,1780066234000,-151.0,0.00019054,2]
[423349620,1780066234000,-151.0,0.00019054,2]
[423349622,1780066234000,-151.0,0.00019054,2]
[423349618,1780066234000,-151.0,0.00019054,2]
[423349623,1780066234000,-151.0,0.00019054,2]
[423349619,1780066234000,-151.0,0.00019054,2]
[423349624,1780066234000,-151.0,0.00019054,2]
[423349621,1780066234000,-151.0,0.00019054,2]
[423349626,1780066234000,-151.0,0.00019054,2]
[423349625,1780066234000,-151.0,0.00019054,2]
[423349614,1780066234000,-151.0,0.00019054,2]
[423349595,1780066234000,-151.0,0.00019053,2]
[423349610,1780066234000,-151.0,0.00019054,2]
[423349603,1780066234000,-151.0,0.00019054,2]
[423349567,1780066234000,-500.0,0.00014505,2]
[423349569,1780066234000,-500.0,0.00014505,2]
[423349597,1780066234000,-151.0,0.00019054,2]
[423349573,1780066234000,-1891.9,0.00016438,2]
[423349572,1780066234000,-363.58443177,0.00016283,2]
[423349574,1780066234000,-795.0,0.00016438,2]
[423349577,1780066234000,-795.0,0.0001726,2]
[423349576,1780066234000,-11962.58270781,0.00017256,2]
[423349578,1780066234000,-1061.64,0.0001772,2]
[423349575,1780066234000,-42165.45813434,0.00017037,2]
[423349579,1780066234000,-2000.0,0.00017825,2]
[423349580,1780066234000,-500.0,0.00017825,2]
[423349584,1780066234000,-165.7025412,0.000182,2]
[423349570,1780066234000,-297.95,0.00015,2]
[423349583,1780066234000,-365.5799085,0.000182,2]
[423349581,1780066234000,-365.5799085,0.00018,2]
[423349599,1780066234000,-151.0,0.00019054,2]
[423349594,1780066234000,-151.0,0.00019053,2]
[423349596,1780066234000,-151.0,0.00019054,2]
[423349593,1780066234000,-151.0,0.00019053,2]
[423349592,1780066234000,-151.0,0.00019053,2]
[423349589,1780066234000,-1891.9,0.0001841,2]
[423349591,1780066234000,-365.5799085,0.000187,2]
[423349586,1780066234000,-30051.06,0.00018356,2]
[423349590,1780066234000,-365.5799085,0.000185,2]
[423349587,1780066234000,-365.5799085,0.000184,2]
[423349588,1780066234000,-165.7025412,0.000184,2]
[423349582,1780066234000,-165.7025412,0.00018,2]
[423349585,1780066234000,-500.0,0.00018355,2]
[423349629,1780066235000,-151.0,0.00019054,2]
[423349627,1780066235000,-151.0,0.00019054,2]
[423349628,1780066235000,-151.0,0.00019054,2]
[423349631,1780066235000,-151.0,0.00019054,2]
[423349630,1780066235000,-151.0,0.00019054,2]
[423349632,1780066235000,-151.0,0.00019054,2]
[423349634,1780066235000,-151.0,0.00019054,2]
[423349636,1780066235000,-178.57895256,0.00019266,2]
[423349637,1780066235000,-1400.52537883,0.00019278,2]
[423349639,1780066235000,-13238.26804476,0.00019681,2]
[423349635,1780066235000,-151.0,0.00019054,2]
[423349638,1780066235000,-1139.49769058,0.00019663,2]
[423349633,1780066235000,-151.0,0.00019054,2]
[423349640,1780066235000,-9825.24876146,0.00019681,2]
[423349641,1780066236000,150.0,0.0002808,120]
[423349650,1780066237000,-1033.14149826,0.00019681,2]
[423349654,1780066237000,-902.60444758,0.00019681,2]
[423349655,1780066237000,-937.76323252,0.00019681,2]
[423349653,1780066237000,-12.3307414,0.00019681,2]
[423349652,1780066237000,-5220.23583516,0.00019681,2]
[423349651,1780066237000,-300.0,0.00019681,2]
[423349855,1780066239000,-1099.24881347,0.00019681,2]
[423350099,1780066241000,-1064.632691,0.00019681,2]
[423350101,1780066241000,-877.19,0.00019681,2]
[423350109,1780066242000,-252.76690883,0.00019681,2]
[423350204,1780066242000,-32.56296381,0.00019681,2]
[423350361,1780066243000,-495.86903647,0.00019681,2]
[423350617,1780066245000,-1221.30469272,0.000199,2]
[423350613,1780066245000,-6873.59515962,0.00019681,2]
[423350632,1780066245000,-2505.0,0.0002,2]
[423350619,1780066245000,-3778.69530728,0.000199,2]
[423350615,1780066245000,-152.0,0.00019763,7]
[423350634,1780066245000,-500.0,0.0002,2]
[423350622,1780066245000,-650.03730079,0.0002,2]
[423350626,1780066245000,-1321.0,0.0002,2]
[423350624,1780066245000,-1000.0,0.0002,2]
[423350628,1780066245000,-621.0,0.0002,2]
[423350630,1780066245000,-500.0,0.0002,2]
[423350664,1780066246000,-21.45283043,0.000204,2]
[423350653,1780066246000,-1881.0,0.0002,2]
[423350657,1780066246000,-650.03730079,0.000202,2]
[423350648,1780066246000,-364.0,0.0002,2]
[423350646,1780066246000,-368.0,0.0002,2]
[423350640,1780066246000,-876.0,0.0002,2]
[423350642,1780066246000,-686.0,0.0002,2]
[423350639,1780066246000,-1933.0,0.0002,2]
[423350636,1780066246000,-500.0,0.0002,2]
[423350655,1780066246000,-2452.44,0.0002,2]
[423350644,1780066246000,-1490.0,0.0002,2]
[423350650,1780066246000,-2743.0,0.0002,2]
[423350659,1780066246000,-1891.9,0.00020381,2]
[423350687,1780066246000,-1279.40585,0.00020548,2]
[423350677,1780066246000,-292.25218186,0.00020547,2]
[423350680,1780066246000,-362.95191864,0.00020547,2]
[423350682,1780066246000,-137.04808136,0.00020547,2]
[423350673,1780066246000,-500.0,0.00020547,2]
[423350668,1780066246000,-283.82629871,0.000204,2]
[423350671,1780066246000,-344.75817165,0.000204,2]
[423350685,1780066246000,-5338.08791865,0.00020548,2]
[423350692,1780066246000,-444.38778338,0.00020548,2]
[423350675,1780066246000,-207.74781814,0.00020547,2]
[423350689,1780066246000,-2366.79,0.00020548,2]
[423350662,1780066246000,-11962.58270781,0.00020385,2]
[423351285,1780066259000,197.29921359,0.0002808,120]
[423351289,1780066298000,150.0,0.0002808,120]
[423351290,1780066358000,1000.0,0.00027397,120]
[423351294,1780066401000,251.014,0.00028082,120]
[423351299,1780066417000,-500.0,0.00039592,120]
[423351298,1780066417000,-500.0,0.00039592,120]
[423351300,1780066417000,-781.96,0.00039592,120]
[423351296,1780066417000,-500.0,0.00039592,120]
[423351295,1780066417000,-141.31032287,0.00039592,120]
[423351297,1780066417000,-781.96,0.00039592,120]
[423351303,1780066417000,-781.96,0.00039592,120]
[423351301,1780066417000,-500.0,0.00039592,120]
[423351305,1780066417000,-339.62394861,0.00039592,120]
[423351310,1780066417000,-419.31695468,0.00039592,120]
[423351304,1780066417000,-500.0,0.00039592,120]
[423351307,1780066417000,-781.96,0.00039592,120]
[423351306,1780066417000,-500.0,0.00039592,120]
[423351309,1780066417000,-781.96,0.00039592,120]
[423351308,1780066417000,-500.0,0.00039592,120]
[423351302,1780066417000,-500.0,0.00039592,120]
[423351311,1780066418000,-546.64,0.00039592,120]
[423351313,1780066418000,-781.96,0.00039592,120]
[423351312,1780066418000,-500.0,0.00039592,120]
[423351315,1780066418000,-781.96,0.00039592,120]
[423351314,1780066418000,-500.0,0.00039592,120]
[423351316,1780066418000,-500.0,0.00039592,120]
[423351317,1780066418000,-781.96,0.00039592,120]
[423351318,1780066418000,-500.0,0.00039592,120]
[423351319,1780066418000,-781.96,0.00039592,120]
[423351329,1780066418000,-500.0,0.00039592,120]
[423351321,1780066418000,-781.96,0.00039592,120]
[423351323,1780066418000,-355.64231983,0.00039592,120]
[423351322,1780066418000,-500.0,0.00039592,120]
[423351324,1780066418000,-781.98366504,0.00039592,120]
[423351325,1780066418000,-500.0,0.00039592,120]
[423351326,1780066418000,-500.0,0.00039592,120]
[423351328,1780066418000,-500.0,0.00039592,120]
[423351327,1780066418000,-500.0,0.00039592,120]
[423351320,1780066418000,-500.0,0.00039592,120]
[423351336,1780066419000,-659.15,0.00039592,120]
[423351335,1780066419000,-500.0,0.00039592,120]
[423351333,1780066419000,-500.0,0.00039592,120]
[423351337,1780066419000,-500.0,0.00039592,120]
[423351331,1780066419000,-500.0,0.00039592,120]
[423351332,1780066419000,-500.0,0.00039592,120]
[423351330,1780066419000,-500.0,0.00039592,120]
[423351334,1780066419000,-659.15,0.00039592,120]
[423351338,1780066419000,-500.0,0.00039592,120]
[423351348,1780066419000,-500.0,0.00039592,120]
[423351340,1780066419000,-500.0,0.00039592,120]
[423351341,1780066419000,-659.15,0.00039592,120]
[423351343,1780066419000,-500.000001,0.00039592,120]
[423351342,1780066419000,-500.0,0.00039592,120]
[423351345,1780066419000,-500.0,0.00039592,120]
[423351344,1780066419000,-659.15,0.00039592,120]
[423351347,1780066419000,-500.0,0.00039592,120]
[423351346,1780066419000,-659.15,0.00039592,120]
[423351339,1780066419000,-659.15,0.00039592,120]
[423351357,1780066420000,-659.15,0.00039592,120]
[423351355,1780066420000,-500.0,0.00039592,120]
[423351354,1780066420000,-659.15,0.00039592,120]
[423351349,1780066420000,-500.0,0.00039592,120]
[423351350,1780066420000,-659.15,0.00039592,120]
[423351351,1780066420000,-542.17512982,0.00039592,120]
[423351356,1780066420000,-500.0,0.00039592,120]
[423351359,1780066420000,-504.19492019,0.00039592,120]
[423351353,1780066420000,-500.0,0.00039592,120]
[423351360,1780066420000,-500.0,0.00039592,120]
[423351358,1780066420000,-500.0,0.00039592,120]
[423351367,1780066420000,-500.0,0.00039592,120]
[423351366,1780066420000,-500.0,0.00039592,120]
[423351364,1780066420000,-500.0,0.00039592,120]
[423351352,1780066420000,-500.0,0.00039592,120]
[423351361,1780066420000,-659.15,0.00039592,120]
[423351362,1780066420000,-500.0,0.00039592,120]
[423351363,1780066420000,-659.15,0.00039592,120]
[423351365,1780066420000,-659.15,0.00039592,120]
[423351368,1780066421000,-659.15,0.00039592,120]
[423351369,1780066421000,-500.0,0.00039592,120]
[423351370,1780066421000,-500.0,0.00039592,120]
[423351371,1780066421000,-659.15,0.00039592,120]
[423351372,1780066421000,-500.0,0.00039592,120]
[423351374,1780066421000,-659.15,0.00039592,120]
[423351375,1780066421000,-518.28864762,0.00039592,120]
[423351376,1780066421000,-500.0,0.00039592,120]
[423351373,1780066421000,-500.0,0.00039592,120]
[423351378,1780066421000,-659.15,0.00039592,120]
[423351377,1780066421000,-500.0,0.00039592,120]
[423351385,1780066421000,-500.0,0.00039592,120]
[423351384,1780066421000,-500.0,0.00039592,120]
[423351383,1780066421000,-500.0,0.00039592,120]
[423351386,1780066421000,-659.15,0.00039592,120]
[423351381,1780066421000,-659.15,0.00039592,120]
[423351380,1780066421000,-500.0,0.00039592,120]
[423351379,1780066421000,-500.0,0.00039592,120]
[423351382,1780066421000,-579.21516052,0.00039592,120]
[423351394,1780066422000,-313.21409272,0.00039592,120]
[423351387,1780066422000,-500.0,0.00039592,120]
[423351388,1780066422000,-500.0,0.00039592,120]
[423351389,1780066422000,-500.0,0.00039592,120]
[423351390,1780066422000,-500.0,0.00039592,120]
[423351391,1780066422000,-659.15,0.00039592,120]
[423351392,1780066422000,-500.0,0.00039592,120]
[423351393,1780066422000,-500.0,0.00039592,120]
[423351395,1780066422000,-500.0,0.00039592,120]
[423351403,1780066422000,-500.0,0.00039592,120]
[423351397,1780066422000,-500.0,0.00039592,120]
[423351398,1780066422000,-500.0,0.00039592,120]
[423351399,1780066422000,-500.0,0.00039592,120]
[423351400,1780066422000,-659.15,0.00039592,120]
[423351401,1780066422000,-500.0,0.00039592,120]
[423351402,1780066422000,-659.15,0.00039592,120]
[423351404,1780066422000,-500.0,0.00039592,120]
[423351405,1780066422000,-500.0,0.00039592,120]
[423351396,1780066422000,-659.15,0.00039592,120]
[423351406,1780066422000,-500.0,0.00039592,120]
[423351414,1780066423000,-500.0,0.00039592,120]
[423351412,1780066423000,-659.28,0.00039592,120]
[423351411,1780066423000,-500.0,0.00039592,120]
[423351407,1780066423000,-659.15,0.00039592,120]
[423351409,1780066423000,-500.0,0.00039592,120]
[423351408,1780066423000,-500.0,0.00039592,120]
[423351415,1780066423000,-500.0,0.00039592,120]
[423351410,1780066423000,-500.0,0.00039592,120]
[423351413,1780066423000,-500.0,0.00039592,120]
[423351416,1780066423000,-500.0,0.00039592,120]
[423351418,1780066423000,-500.0,0.00039592,120]
[423351426,1780066423000,-414.64725106,0.00039592,120]
[423351425,1780066423000,-500.0,0.00039592,120]
[423351424,1780066423000,-500.0,0.00039592,120]
[423351423,1780066423000,-504.43889196,0.00039592,120]
[423351417,1780066423000,-500.0,0.00039592,120]
[423351421,1780066423000,-262.991875,0.00039592,120]
[423351420,1780066423000,-500.0,0.00039592,120]
[423351419,1780066423000,-500.0,0.00039592,120]
[423351422,1780066423000,-500.0,0.00039592,120]
[423351434,1780066424000,-500.0,0.00039592,120]
[423351427,1780066424000,-500.0,0.00039592,120]
[423351428,1780066424000,-500.0,0.00039592,120]
[423351429,1780066424000,-500.0,0.00039592,120]
[423351430,1780066424000,-500.0,0.00039592,120]
[423351431,1780066424000,-500.0,0.00039592,120]
[423351432,1780066424000,-262.53345113,0.00039592,120]
[423351433,1780066424000,-500.0,0.00039592,120]
[423351435,1780066424000,-500.0,0.00039592,120]
[423351436,1780066424000,-500.0,0.00039592,120]
[423351437,1780066424000,-500.0,0.00039592,120]
[423351445,1780066424000,-500.0,0.00039592,120]
[423351444,1780066424000,-500.0,0.00039592,120]
[423351443,1780066424000,-500.0,0.00039592,120]
[423351442,1780066424000,-500.0,0.00039592,120]
[423351446,1780066424000,-500.0,0.00039592,120]
[423351440,1780066424000,-500.0,0.00039592,120]
[423351439,1780066424000,-500.0,0.00039592,120]
[423351438,1780066424000,-500.0,0.00039592,120]
[423351441,1780066424000,-500.0,0.00039592,120]
[423351454,1780066425000,-500.0,0.00039592,120]
[423351447,1780066425000,-814.71,0.00039592,120]
[423351449,1780066425000,-500.0,0.00039592,120]
[423351448,1780066425000,-591.73458153,0.00039592,120]
[423351450,1780066425000,-585.81906844,0.00039592,120]
[423351451,1780066425000,-814.71,0.00039592,120]
[423351452,1780066425000,-500.0,0.00039592,120]
[423351453,1780066425000,-814.71,0.00039592,120]
[423351455,1780066425000,-814.71,0.00039592,120]
[423351466,1780066425000,-500.0,0.00039592,120]
[423351458,1780066425000,-500.0,0.00039592,120]
[423351457,1780066425000,-814.71,0.00039592,120]
[423351459,1780066425000,-814.71,0.00039592,120]
[423351460,1780066425000,-502.44424125,0.00039592,120]
[423351462,1780066425000,-500.0,0.00039592,120]
[423351461,1780066425000,-814.71,0.00039592,120]
[423351463,1780066425000,-814.71,0.00039592,120]
[423351464,1780066425000,-500.0,0.00039592,120]
[423351465,1780066425000,-814.71,0.00039592,120]
[423351456,1780066425000,-500.0,0.00039592,120]
[423351473,1780066426000,-500.0,0.00039592,120]
[423351474,1780066426000,-500.0,0.00039592,120]
[423351471,1780066426000,-814.71,0.00039592,120]
[423351467,1780066426000,-500.0,0.00039592,120]
[423351470,1780066426000,-500.0,0.00039592,120]
[423351469,1780066426000,-814.71,0.00039592,120]
[423351468,1780066426000,-500.0,0.00039592,120]
[423351472,1780066426000,-500.0,0.00039592,120]
[423351475,1780066426000,-515.5,0.00039592,120]
[423351477,1780066426000,-500.0,0.00039592,120]
[423351478,1780066426000,-500.0,0.00039592,120]
[423351486,1780066426000,-500.0,0.00039592,120]
[423351487,1780066426000,-814.71,0.00039592,120]
[423351485,1780066426000,-814.71,0.00039592,120]
[423351484,1780066426000,-500.0,0.00039592,120]
[423351476,1780066426000,-814.71,0.00039592,120]
[423351482,1780066426000,-814.71,0.00039592,120]
[423351480,1780066426000,-500.0,0.00039592,120]
[423351483,1780066426000,-628.74134567,0.00039592,120]
[423351481,1780066426000,-500.0,0.00039592,120]
[423351507,1780066427000,-500.0,0.00039592,120]
[423351488,1780066427000,-500.0,0.00039592,120]
[423351489,1780066427000,-500.0,0.00039592,120]
[423351490,1780066427000,-814.71,0.00039592,120]
[423351491,1780066427000,-500.0,0.00039592,120]
[423351492,1780066427000,-500.0,0.00039592,120]
[423351494,1780066427000,-814.71,0.00039592,120]
[423351495,1780066427000,-500.0,0.00039592,120]
[423351496,1780066427000,-500.0,0.00039592,120]
[423351493,1780066427000,-500.0,0.00039592,120]
[423351498,1780066427000,-814.71,0.00039592,120]
[423351499,1780066427000,-500.0,0.00039592,120]
[423351500,1780066427000,-500.0,0.00039592,120]
[423351501,1780066427000,-500.0,0.00039592,120]
[423351502,1780066427000,-814.71,0.00039592,120]
[423351503,1780066427000,-500.0,0.00039592,120]
[423351505,1780066427000,-500.0,0.00039592,120]
[423351504,1780066427000,-500.0,0.00039592,120]
[423351497,1780066427000,-500.0,0.00039592,120]
[423351506,1780066427000,-500.0,0.00039592,120]
[423351514,1780066428000,-500.0,0.00039592,120]
[423351512,1780066428000,-814.71,0.00039592,120]
[423351513,1780066428000,-500.0,0.00039592,120]
[423351509,1780066428000,-500.0,0.00039592,120]
[423351511,1780066428000,-309.64444839,0.00039592,120]
[423351508,1780066428000,-814.71,0.00039592,120]
[423351515,1780066428000,-814.71,0.00039592,120]
[423351510,1780066428000,-500.0,0.00039592,120]
[423351516,1780066428000,-500.0,0.00039592,120]
[423351523,1780066428000,-761.82,0.00039592,120]
[423351518,1780066428000,-467.85812669,0.00039592,120]
[423351517,1780066428000,-814.71,0.00039592,120]
[423351526,1780066428000,-500.0,0.00039592,120]
[423351527,1780066428000,-761.82,0.00039592,120]
[423351525,1780066428000,-761.82,0.00039592,120]
[423351524,1780066428000,-761.82,0.00039592,120]
[423351522,1780066428000,-430.70203587,0.00039592,120]
[423351521,1780066428000,-761.82,0.00039592,120]
[423351520,1780066428000,-814.80978352,0.00039592,120]
[423351519,1780066428000,-505.77780049,0.00039592,120]
[423351528,1780066429000,-500.0,0.00039592,120]
[423351530,1780066429000,-500.0,0.00039592,120]
[423351532,1780066429000,-531.05624117,0.00039592,120]
[423351531,1780066429000,-761.82,0.00039592,120]
[423351534,1780066429000,-500.0,0.00039592,120]
[423351533,1780066429000,-761.82,0.00039592,120]
[423351535,1780066429000,-761.82,0.00039592,120]
[423351536,1780066429000,-500.0,0.00039592,120]
[423351529,1780066429000,-761.82,0.00039592,120]
[423351538,1780066429000,-761.82,0.00039592,120]
[423351540,1780066429000,-500.0,0.00039592,120]
[423351537,1780066429000,-514.1091452,0.00039592,120]
[423351545,1780066429000,-500.0,0.00039592,120]
[423351546,1780066429000,-500.0,0.00039592,120]
[423351543,1780066429000,-500.0,0.00039592,120]
[423351539,1780066429000,-500.0,0.00039592,120]
[423351541,1780066429000,-761.82,0.00039592,120]
[423351542,1780066429000,-500.0,0.00039592,120]
[423351544,1780066429000,-761.82,0.00039592,120]
[423351548,1780066430000,-500.0,0.00039592,120]
[423351550,1780066430000,-761.82,0.00039592,120]
[423351549,1780066430000,-500.0,0.00039592,120]
[423351551,1780066430000,-500.0,0.00039592,120]
[423351552,1780066430000,-500.0,0.00039592,120]
[423351553,1780066430000,-500.0,0.00039592,120]
[423351555,1780066430000,-500.0,0.00039592,120]
[423351554,1780066430000,-761.82,0.00039592,120]
[423351547,1780066430000,-761.82,0.00039592,120]
[423351557,1780066430000,-500.0,0.00039592,120]
[423351563,1780066430000,-500.0,0.00039592,120]
[423351564,1780066430000,-761.82,0.00039592,120]
[423351562,1780066430000,-500.0,0.00039592,120]
[423351556,1780066430000,-500.0,0.00039592,120]
[423351560,1780066430000,-500.0,0.00039592,120]
[423351559,1780066430000,-500.0,0.00039592,120]
[423351558,1780066430000,-761.82,0.00039592,120]
[423351561,1780066430000,-761.82,0.00039592,120]
[423351565,1780066431000,-500.0,0.00039592,120]
[423351572,1780066431000,-761.82,0.00039592,120]
[423351567,1780066431000,-500.0,0.00039592,120]
[423351568,1780066431000,-761.82,0.00039592,120]
[423351569,1780066431000,-500.0,0.00039592,120]
[423351570,1780066431000,-500.0,0.00039592,120]
[423351571,1780066431000,-542.10125677,0.00039592,120]
[423351566,1780066431000,-500.0,0.00039592,120]
[423351573,1780066431000,-500.0,0.00039592,120]
[423351575,1780066431000,-500.0,0.00039592,120]
[423351576,1780066431000,-500.0,0.00039592,120]
[423351578,1780066431000,-500.0,0.00039592,120]
[423351577,1780066431000,-761.82,0.00039592,120]
[423351580,1780066431000,-500.0,0.00039592,120]
[423351581,1780066431000,-761.82,0.00039592,120]
[423351574,1780066431000,-500.0,0.00039592,120]
[423351579,1780066431000,-500.0,0.00039592,120]
[423351589,1780066432000,-500.0,0.00039592,120]
[423351583,1780066432000,-500.0,0.00039592,120]
[423351582,1780066432000,-500.0,0.00039592,120]